fUSD/lending_fUSD_20260319
["ID","MTS","AMOUNT","RATE_DAILY","PERIOD"]
[408578174,1773901854299,-151.0,0.00015955,2]
[408578175,1773901854308,-151.0,0.00015955,2]
[408578176,1773901854319,-520.503441,0.00015955,2]
[408578177,1773901854329,-280.24666,0.00015955,2]
[408578178,1773901854339,-351.558585,0.00015955,2]
[408578179,1773901854348,-154.946807,0.00015955,2]
[408578180,1773901854357,-280.24666,0.00015955,2]
[408578181,1773901854366,-351.558585,0.00015955,2]
[408578182,1773901854375,-151.0,0.00015955,2]
[408578183,1773901854384,-151.0,0.00015955,2]
[408578184,1773901854393,-280.24666,0.00015955,2]
[408578185,1773901854402,-351.558585,0.00015955,2]
[408578186,1773901854410,-151.0,0.00015955,2]
[408578187,1773901854419,-796.693714,0.00015955,2]
[408578188,1773901854428,-151.0,0.00015955,2]
[408578189,1773901854437,-151.0,0.00015955,2]
[408578190,1773901854446,-280.24666,0.00015955,2]
[408578191,1773901854455,-351.558585,0.00015955,2]
[408578192,1773901854464,-151.0,0.00015955,2]
[408578193,1773901854473,-151.0,0.00015955,2]
[408578194,1773901854482,-796.693714,0.00015955,2]
[408578195,1773901854491,-151.0,0.00015955,2]
[408578196,1773901854500,-151.0,0.00015955,2]
[408578197,1773901854509,-796.693714,0.00015955,2]
[408578198,1773901854518,-151.0,0.00015955,2]
[408578199,1773901854527,-281.578183,0.00015955,2]
[408578200,1773901854537,-796.693714,0.00015955,2]
[408578201,1773901854546,-151.0,0.00015955,2]
[408578202,1773901854556,-151.0,0.00015955,2]
[408578203,1773901854566,-912.434485,0.00015955,2]
[408578204,1773901854576,-151.0,0.00015955,2]
[408578205,1773901854585,-151.0,0.00015955,2]
[408578206,1773901854595,-151.0,0.00015955,2]
[408578207,1773901854605,-912.434485,0.00015955,2]
[408578208,1773901854617,-256.79382,0.00015955,2]
[408578209,1773901854628,-151.0,0.00015955,2]
[408578210,1773901854639,-151.0,0.00015955,2]
[408578211,1773901854648,-912.434485,0.00015955,2]
[408578212,1773901854659,-256.79382,0.00015955,2]
[408578213,1773901854668,-151.0,0.00015955,2]
[408578214,1773901854676,-912.434485,0.00015955,2]
[408578215,1773901854685,-256.79382,0.00015955,2]
[408578216,1773901854694,-256.79382,0.00015955,2]
[408578217,1773901854703,-151.0,0.00015955,2]
[408578218,1773901854712,-151.0,0.00015955,2]
[408578219,1773901854721,-151.0,0.00015955,2]
[408578220,1773901854731,-151.0,0.00015955,2]
[408578221,1773901854740,-203.53456007,0.00015955,2]
[408578222,1773901854749,-2138.057356,0.00015955,2]
[408578223,1773901854759,-2138.057356,0.00015955,2]
[408578224,1773901854768,-249.928269,0.00015955,2]
[408578225,1773901854783,-2138.057356,0.00015955,2]
[408578226,1773901854792,-249.928269,0.00015955,2]
[408578227,1773901854801,-2138.057356,0.00015955,2]
[408578228,1773901854810,-249.928269,0.00015955,2]
[408578229,1773901854819,-210.110521,0.00015955,2]
[408578230,1773901854827,-249.928269,0.00015955,2]
[408578231,1773901854836,-210.110521,0.00015955,2]
[408578232,1773901854845,-1096.767558,0.00015955,2]
[408578233,1773901854854,-210.110521,0.00015955,2]
[408578234,1773901854863,-1096.767558,0.00015955,2]
[408578235,1773901854872,-210.110521,0.00015955,2]
[408578236,1773901854881,-1157.460764,0.00015955,2]
[408578237,1773901854890,-1096.767558,0.00015955,2]
[408578238,1773901854898,-151.0,0.00015955,2]
[408578239,1773901854907,-1157.460764,0.00015955,2]
[408578240,1773901854919,-151.0,0.00015955,2]
[408578241,1773901854928,-1096.767558,0.00015955,2]
[408578242,1773901854937,-1157.460764,0.00015955,2]
[408578243,1773901854946,-1157.460764,0.00015955,2]
[408578244,1773901854955,-363.219552,0.00015955,2]
[408578245,1773901854965,-363.219552,0.00015955,2]
[408578246,1773901854974,-2210.994346,0.00015955,2]
[408578247,1773901854983,-363.219552,0.00015955,2]
[408578248,1773901854992,-151.0,0.00015955,2]
[408578249,1773901855001,-574.989656,0.00015955,2]
[408578250,1773901855010,-2210.994346,0.00015955,2]
[408578251,1773901855019,-363.219552,0.00015955,2]
[408578252,1773901855028,-574.989656,0.00015955,2]
[408578253,1773901855037,-1697.722132,0.00015955,2]
[408578254,1773901855046,-2210.994346,0.00015955,2]
[408578255,1773901855056,-151.0,0.00015955,2]
[408578256,1773901855065,-574.989656,0.00015955,2]
[408578257,1773901855076,-476.059927,0.00015955,2]
[408578258,1773901855088,-1697.722132,0.00015955,2]
[408578259,1773901855097,-2210.994346,0.00015955,2]
[408578260,1773901855107,-151.0,0.00015955,2]
[408578261,1773901855116,-151.0,0.00015955,2]
[408578262,1773901855125,-476.059927,0.00015955,2]
[408578263,1773901855135,-574.989656,0.00015955,2]
[408578264,1773901855144,-1697.722132,0.00015955,2]
[408578265,1773901855153,-476.059927,0.00015955,2]
[408578266,1773901855163,-1697.722132,0.00015955,2]
[408578267,1773901855172,-476.059927,0.00015955,2]
[408578268,1773901855182,-151.0,0.00015955,2]
[408578269,1773901855191,-260.655179,0.00015955,2]
[408578270,1773901855201,-151.0,0.00015955,2]
[408578271,1773901855210,-260.655179,0.00015955,2]
[408578272,1773901855220,-352.236427,0.00015955,2]
[408578273,1773901855230,-260.655179,0.00015955,2]
[408578274,1773901855240,-151.0,0.00015955,2]
[408578275,1773901855254,-352.236427,0.00015955,2]
[408578276,1773901855264,-352.236427,0.00015955,2]
[408578277,1773901855274,-151.0,0.00015955,2]
[408578278,1773901855285,-151.0,0.00015955,2]
[408578279,1773901855295,-151.0,0.00015955,2]
[408578280,1773901855304,-352.236427,0.00015955,2]
[408578281,1773901855314,-151.0,0.00015955,2]
[408578282,1773901855325,-187.563578,0.00015955,2]
[408578283,1773901855335,-151.0,0.00015955,2]
[408578284,1773901855345,-260.655179,0.00015955,2]
[408578285,1773901855354,-151.0,0.00015955,2]
[408578286,1773901855364,-151.0,0.00015955,2]
[408578287,1773901855373,-151.0,0.00015955,2]
[408578288,1773901855383,-1999.652305,0.00015955,2]
[408578289,1773901855393,-2612.845104,0.00015955,2]
[408578290,1773901855403,-152.450584,0.00015955,2]
[408578291,1773901855413,-1999.652305,0.00015955,2]
[408578292,1773901855422,-1999.652305,0.00015955,2]
[408578293,1773901855432,-1999.652305,0.00015955,2]
[408578294,1773901855441,-151.0,0.00015955,2]
[408578295,1773901855451,-151.0,0.00015955,2]
[408578296,1773901855460,-151.0,0.00015955,2]
[408578297,1773901855470,-151.0,0.00015955,2]
[408578298,1773901855479,-151.0,0.00015955,2]
[408578299,1773901855488,-151.0,0.00015955,2]
[408578300,1773901855498,-151.0,0.00015955,2]
[408578301,1773901855508,-1185.85355,0.00015955,2]
[408578302,1773901855518,-1185.85355,0.00015955,2]
[408578303,1773901855527,-409.478029,0.00015955,2]
[408578304,1773901855537,-1185.85355,0.00015955,2]
[408578305,1773901855547,-409.478029,0.00015955,2]
[408578306,1773901855556,-1185.85355,0.00015955,2]
[408578307,1773901855566,-178.05707,0.00015955,2]
[408578308,1773901855576,-409.478029,0.00015955,2]
[408578309,1773901855586,-178.05707,0.00015955,2]
[408578310,1773901855596,-409.478029,0.00015955,2]
[408578311,1773901855606,-178.05707,0.00015955,2]
[408578312,1773901855615,-178.05707,0.00015955,2]
[408578313,1773901855625,-151.0,0.00015955,2]
[408578314,1773901855635,-151.0,0.00015955,2]
[408578315,1773901855644,-151.0,0.00015955,2]
[408578316,1773901855654,-151.0,0.00015955,2]
[408578317,1773901855664,-151.0,0.00015955,2]
[408578318,1773901855674,-151.0,0.00015955,2]
[408578319,1773901855683,-504.420128,0.00015955,2]
[408578320,1773901855693,-151.0,0.00015955,2]
[408578321,1773901855703,-504.420128,0.00015955,2]
[408578322,1773901855712,-258.166951,0.00015955,2]
[408578323,1773901855722,-151.0,0.00015955,2]
[408578324,1773901855731,-2199.815114,0.00015955,2]
[408578325,1773901855741,-504.420128,0.00015955,2]
[408578326,1773901855750,-258.166951,0.00015955,2]
[408578327,1773901855760,-189.426167,0.00015955,2]
[408578328,1773901855770,-151.0,0.00015955,2]
[408578329,1773901855781,-864.407632,0.00015955,2]
[408578330,1773901855790,-1651.820882,0.00015955,2]
[408578331,1773901855800,-2199.815114,0.00015955,2]
[408578332,1773901855810,-258.166951,0.00015955,2]
[408578333,1773901855820,-864.407632,0.00015955,2]
[408578334,1773901855830,-1651.820882,0.00015955,2]
[408578335,1773901855839,-504.420128,0.00015955,2]
[408578336,1773901855849,-2199.815114,0.00015955,2]
[408578337,1773901855859,-151.0,0.00015955,2]
[408578338,1773901855868,-151.0,0.00015955,2]
[408578339,1773901855878,-1651.820882,0.00015955,2]
[408578340,1773901855888,-2199.815114,0.00015955,2]
[408578341,1773901855897,-151.0,0.00015955,2]
[408578342,1773901855906,-151.0,0.00015955,2]
[408578343,1773901855917,-151.0,0.00015955,2]
[408578344,1773901855926,-1651.820882,0.00015955,2]
[408578345,1773901855936,-258.166951,0.00015955,2]
[408578346,1773901855945,-151.0,0.00015955,2]
[408578347,1773901855954,-252.461609,0.00015955,2]
[408578348,1773901855963,-864.407632,0.00015955,2]
[408578349,1773901855972,-151.0,0.00015955,2]
[408578350,1773901855982,-252.461609,0.00015955,2]
[408578351,1773901855991,-864.407632,0.00015955,2]
[408578352,1773901856001,-151.0,0.00015955,2]
[408578353,1773901856011,-252.461609,0.00015955,2]
[408578354,1773901856020,-151.0,0.00015955,2]
[408578355,1773901856029,-151.0,0.00015955,2]
[408578356,1773901856039,-252.461609,0.00015955,2]
[408578357,1773901856048,-151.0,0.00015955,2]
[408578358,1773901856058,-1475.861647,0.00015955,2]
[408578359,1773901856068,-3178.349364,0.00015955,2]
[408578360,1773901856078,-151.0,0.00015955,2]
[408578361,1773901856089,-1475.861647,0.00015955,2]
[408578362,1773901856099,-3178.349364,0.00015955,2]
[408578363,1773901856110,-766.398952,0.00015955,2]
[408578364,1773901856120,-151.0,0.00015955,2]
[408578365,1773901856130,-151.0,0.00015955,2]
[408578366,1773901856141,-1475.861647,0.00015955,2]
[408578367,1773901856151,-3178.349364,0.00015955,2]
[408578368,1773901856161,-1484.718008,0.00015955,2]
[408578369,1773901856171,-766.398952,0.00015955,2]
[408578370,1773901856180,-151.0,0.00015955,2]
[408578371,1773901856190,-1475.861647,0.00015955,2]
[408578372,1773901856199,-3178.349364,0.00015955,2]
[408578373,1773901856209,-151.0,0.00015955,2]
[408578374,1773901856219,-1484.718008,0.00015955,2]
[408578375,1773901856229,-766.398952,0.00015955,2]
[408578376,1773901856239,-151.0,0.00015955,2]
[408578377,1773901856253,-151.0,0.00015955,2]
[408578378,1773901856263,-151.0,0.00015955,2]
[408578379,1773901856273,-1484.718008,0.00015955,2]
[408578380,1773901856283,-1111.289819,0.00015955,2]
[408578381,1773901856295,-167.821006,0.00015955,2]
[408578382,1773901856304,-766.398952,0.00015955,2]
[408578383,1773901856314,-151.0,0.00015955,2]
[408578384,1773901856325,-151.0,0.00015955,2]
[408578385,1773901856335,-1484.718008,0.00015955,2]
[408578386,1773901856345,-1111.289819,0.00015955,2]
[408578387,1773901856355,-151.0,0.00015955,2]
[408578388,1773901856366,-151.0,0.00015955,2]
[408578389,1773901856376,-1111.289819,0.00015955,2]
[408578390,1773901856386,-151.0,0.00015955,2]
[408578391,1773901856396,-151.0,0.00015955,2]
[408578392,1773901856406,-1111.289819,0.00015955,2]
[408578393,1773901856416,-1585.436337,0.00015955,2]
[408578394,1773901856426,-1585.436337,0.00015955,2]
[408578395,1773901856435,-1585.436337,0.00015955,2]
[408578396,1773901856445,-1349.424833,0.00015955,2]
[408578397,1773901856455,-1585.436337,0.00015955,2]
[408578398,1773901856464,-500.0,0.00015955,2]
[408578399,1773901856474,-1349.424833,0.00015955,2]
[408578400,1773901856483,-500.0,0.00015955,2]
[408578401,1773901856493,-1349.424833,0.00015955,2]
[408578402,1773901856503,-4518.228758,0.00015955,2]
[408578403,1773901856512,-500.0,0.00015955,2]
[408578404,1773901856522,-1349.424833,0.00015955,2]
[408578405,1773901856532,-4518.228758,0.00015955,2]
[408578406,1773901856543,-500.0,0.00015955,2]
[408578407,1773901856553,-4518.228758,0.00015955,2]
[408578408,1773901856563,-151.0,0.00015955,2]
[408578409,1773901856572,-4518.228758,0.00015955,2]
[408578410,1773901856582,-303.915512,0.00015955,2]
[408578411,1773901856592,-151.0,0.00015955,2]
[408578412,1773901856603,-303.915512,0.00015955,2]
[408578413,1773901856613,-241.616519,0.00015955,2]
[408578414,1773901856624,-303.915512,0.00015955,2]
[408578415,1773901856633,-303.915512,0.00015955,2]
[408578416,1773901856643,-151.0,0.00015955,2]
[408578417,1773901856653,-492.914894,0.00015955,2]
[408578418,1773901856662,-492.914894,0.00015955,2]
[408578419,1773901856672,-151.0,0.00015955,2]
[408578420,1773901856682,-277.136968,0.00015955,2]
[408578421,1773901856691,-492.914894,0.00015955,2]
[408578422,1773901856701,-277.136968,0.00015955,2]
[408578423,1773901856710,-492.914894,0.00015955,2]
[408578424,1773901856720,-192.068922,0.00015955,2]
[408578425,1773901856730,-277.136968,0.00015955,2]
[408578426,1773901856739,-151.0,0.00015955,2]
[408578427,1773901856749,-192.068922,0.00015955,2]
[408578428,1773901856759,-277.136968,0.00015955,2]
[408578429,1773901856768,-192.068922,0.00015955,2]
[408578430,1773901856778,-2289.291087,0.00015955,2]
[408578431,1773901856788,-544.326923,0.00015955,2]
[408578432,1773901856798,-151.0,0.00015955,2]
[408578433,1773901856808,-192.068922,0.00015955,2]
[408578434,1773901856819,-770.064578,0.00015955,2]
[408578435,1773901856828,-2289.291087,0.00015955,2]
[408578436,1773901856838,-273.301737,0.00015955,2]
[408578437,1773901856847,-151.0,0.00015955,2]
[408578438,1773901856857,-544.326923,0.00015955,2]
[408578439,1773901856867,-770.064578,0.00015955,2]
[408578440,1773901856877,-151.0,0.00015955,2]
[408578441,1773901856887,-2289.291087,0.00015955,2]
[408578442,1773901856897,-242.77687,0.00015955,2]
[408578443,1773901856906,-544.326923,0.00015955,2]
[408578444,1773901856916,-2635.334568,0.00015955,2]
[408578445,1773901856925,-770.064578,0.00015955,2]
[408578446,1773901856935,-151.0,0.00015955,2]
[408578447,1773901856945,-2289.291087,0.00015955,2]
[408578448,1773901856954,-544.326923,0.00015955,2]
[408578449,1773901856964,-2635.334568,0.00015955,2]
[408578450,1773901856974,-770.064578,0.00015955,2]
[408578451,1773901856983,-2635.334568,0.00015955,2]
[408578452,1773901856993,-1291.432253,0.00015955,2]
[408578453,1773901857003,-2635.334568,0.00015955,2]
[408578454,1773901857013,-1291.432253,0.00015955,2]
[408578455,1773901857023,-1291.432253,0.00015955,2]
[408578456,1773901857033,-151.0,0.00015955,2]
[408578457,1773901857043,-2420.00275,0.00015955,2]
[408578458,1773901857053,-151.0,0.00015955,2]
[408578459,1773901857062,-1291.432253,0.00015955,2]
[408578460,1773901857072,-151.0,0.00015955,2]
[408578461,1773901857082,-2420.00275,0.00015955,2]
[408578462,1773901857092,-151.0,0.00015955,2]
[408578463,1773901857102,-151.0,0.00015955,2]
[408578464,1773901857111,-2420.00275,0.00015955,2]
[408578465,1773901857121,-151.0,0.00015955,2]
[408578466,1773901857131,-2420.00275,0.00015955,2]
[408578467,1773901857141,-231.822302,0.00015955,2]
[408578468,1773901857152,-151.0,0.00015955,2]
[408578469,1773901857162,-606.713391,0.00015955,2]
[408578470,1773901857173,-151.0,0.00015955,2]
[408578471,1773901857183,-151.0,0.00015955,2]
[408578472,1773901857192,-606.713391,0.00015955,2]
[408578473,1773901857202,-761.863263,0.00015955,2]
[408578474,1773901857212,-151.0,0.00015955,2]
[408578475,1773901857221,-151.0,0.00015955,2]
[408578476,1773901857231,-761.863263,0.00015955,2]
[408578477,1773901857444,-606.713391,0.00015955,2]
[408578478,1773901857487,-761.863263,0.00015955,2]
[408578479,1773901857499,-606.713391,0.00015955,2]
[408578480,1773901857510,-761.863263,0.00015955,2]
[408578481,1773901857519,-151.0,0.00015955,2]
[408578482,1773901857529,-151.0,0.00015955,2]
[408578483,1773901857539,-151.0,0.00015955,2]
[408578484,1773901857549,-151.0,0.00015955,2]
[408578485,1773901857558,-760.206708,0.00015955,2]
[408578486,1773901857568,-151.0,0.00015955,2]
[408578487,1773901857577,-760.206708,0.00015955,2]
[408578488,1773901857587,-760.206708,0.00015955,2]
[408578489,1773901857597,-1951.875944,0.00015955,2]
[408578490,1773901857606,-591.831781,0.00015955,2]
[408578491,1773901857616,-151.0,0.00015955,2]
[408578492,1773901857625,-1951.875944,0.00015955,2]
[408578493,1773901857635,-760.206708,0.00015955,2]
[408578494,1773901857645,-591.831781,0.00015955,2]
[408578495,1773901857655,-151.0,0.00015955,2]
[408578496,1773901857665,-1951.875944,0.00015955,2]
[408578497,1773901857674,-591.831781,0.00015955,2]
[408578498,1773901857684,-151.0,0.00015955,2]
[408578499,1773901857693,-151.0,0.00015955,2]
[408578500,1773901857702,-591.831781,0.00015955,2]
[408578501,1773901857712,-1951.875944,0.00015955,2]
[408578502,1773901857722,-151.0,0.00015955,2]
[408578503,1773901857731,-845.938546,0.00015955,2]
[408578504,1773901857741,-845.938546,0.00015955,2]
[408578505,1773901857750,-1370.881087,0.00015955,2]
[408578506,1773901857760,-151.0,0.00015955,2]
[408578507,1773901857769,-845.938546,0.00015955,2]
[408578508,1773901857778,-1370.881087,0.00015955,2]
[408578509,1773901857788,-946.660142,0.00015955,2]
[408578510,1773901857798,-285.489041,0.00015955,2]
[408578511,1773901857807,-845.938546,0.00015955,2]
[408578512,1773901857816,-1370.881087,0.00015955,2]
[408578513,1773901857826,-946.660142,0.00015955,2]
[408578514,1773901857835,-186.812431,0.00015955,2]
[408578515,1773901857845,-151.0,0.00015955,2]
[408578516,1773901857854,-1370.881087,0.00015955,2]
[408578517,1773901857863,-946.660142,0.00015955,2]
[408578518,1773901857873,-351.175175,0.00015955,2]
[408578519,1773901857882,-186.812431,0.00015955,2]
[408578520,1773901857891,-151.0,0.00015955,2]
[408578521,1773901857900,-151.0,0.00015955,2]
[408578522,1773901857910,-946.660142,0.00015955,2]
[408578523,1773901857919,-9680.222096,0.00015955,2]
[408578524,1773901857928,-351.175175,0.00015955,2]
[408578525,1773901857937,-186.812431,0.00015955,2]
[408578526,1773901857946,-251.318338,0.00015955,2]
[408578527,1773901857955,-151.0,0.00015955,2]
[408578528,1773901857964,-10554.42162063,0.00015955,3]
[408578529,1773901857973,-10000.00999999,0.00015955,3]
[408578530,1773901857983,-30000.03000001,0.00015955,3]
[408578531,1773901857992,-235.0,0.00015956,2]
[408578532,1773901858001,-200.0,0.00015958,2]
[408578533,1773901858010,-700.0,0.0001597,2]
[408578534,1773901858020,-700.0,0.0001597,2]
[408578535,1773901858029,-700.0,0.0001597,2]
[408578536,1773901858038,-700.0,0.0001597,2]
[408578537,1773901858048,-700.0,0.0001597,2]
[408578538,1773901858057,-700.0,0.0001597,2]
[408578539,1773901858067,-700.0,0.0001597,2]
[408578540,1773901858077,-700.0,0.0001597,2]
[408578541,1773901858088,-704.56000601,0.0001597,2]
[408578542,1773901858098,-300.0,0.00015971,2]
[408578543,1773901858107,-500.0,0.00015973,2]
[408578544,1773901858117,-500.0,0.00015973,2]
[408578545,1773901858126,-500.0,0.00015973,2]
[408578546,1773901858136,-500.0,0.00015973,2]
[408578547,1773901858146,-500.0,0.00015973,2]
[408578548,1773901858155,-500.0,0.00015973,2]
[408578549,1773901858165,-500.0,0.00015973,2]
[408578550,1773901858175,-534.74942623,0.00015973,2]
[408578551,1773901858185,-500.0,0.00015973,2]
[408578552,1773901858195,-500.64450222,0.00015973,2]
[408578553,1773901858207,-500.0,0.00015973,2]
[408578554,1773901858217,-166.1762201,0.00015973,2]
[408578555,1773901858226,-440.608484,0.00015995,2]
[408578556,1773901858235,-151.0,0.00015997,2]
[408578557,1773901858247,-151.0,0.00015997,2]
[408578558,1773901858256,-151.0,0.00015997,2]
[408578559,1773901858266,-174.47964956,0.00015999,2]
[408578560,1773901858275,-3668416.62769822,0.00016,2]
[408578561,1773901858686,-328.26181828,0.00016,2]
[408578562,1773901859109,-151.0,0.00015955,2]
[408578563,1773901859118,-371.9232407,0.00016,2]
[408578564,1773901859129,-478.14391362,0.00016,2]
[408578565,1773901859153,-351.175175,0.00015955,2]
[408578566,1773901859163,-28833.7618984,0.00016,2]
[408578567,1773901859174,-2555.53712549,0.00016,2]
[408578568,1773901859184,-509.65562623,0.00016,2]
[408578569,1773901859665,-1044.0,0.00014721,2]
[408578570,1773901859674,-492.01755035,0.000159,2]
[408578571,1773901859683,-2348.93468482,0.00015955,2]
[408578572,1773901859701,-7331.28741118,0.00015955,2]
[408578573,1773901859709,-186.812431,0.00015955,2]
[408578574,1773901859718,-251.318338,0.00015955,2]
[408578575,1773901859726,-351.175175,0.00015955,2]
[408578576,1773901859735,-1460.38358595,0.00015955,2]
[408578577,1773901860037,500.0,9.945e-05,2]
[408578578,1773901860139,-1703.55588657,0.00015955,2]
[408578579,1773901861145,9500.01,9.955e-05,2]
[408578580,1773901861167,10000.01,9.955e-05,2]
[408578581,1773901861194,13474.6657,9.955e-05,2]
[408578582,1773901867546,153.0,9.955e-05,3]
[408578583,1773901871400,732146.08654142,9.955e-05,2]
[408578584,1773901871432,1767853.91345858,9.955e-05,2]
[408578585,1773901889421,1000.0,9.955e-05,2]
[408578586,1773901926347,153.0,9.955e-05,3]
[408578587,1773901928723,2500.0,9.955e-05,2]
[408578588,1773901962702,228646.08654142,9.955e-05,2]
[408578589,1773901985301,153.0,9.955e-05,3]
[408578590,1773902045383,153.0,9.955e-05,3]
[408578591,1773902099330,300.0,9.7e-05,3]
[408578592,1773902100991,540.69,0.00016,120]
[408578593,1773902101429,600.0,9.8e-05,3]
[408578594,1773902103531,1000.0,9.9e-05,3]
[408578595,1773902105716,153.0,9.955e-05,3]
[408578596,1773902105772,1300.0,0.0001,3]
[408578597,1773902110990,327.0,9.955e-05,3]
[408578598,1773902140560,248.0,9.871e-05,2]
[408578599,1773902140586,152.80810781,9.871e-05,2]
[408578600,1773902140612,1929.20189219,9.871e-05,2]
[408578601,1773902167697,153.0,9.7e-05,3]
[408578602,1773902227533,154.0,9.7e-05,3]
[408578685,1773902277487,87.24387756,9.637e-05,2]
[408578687,1773902277512,245.023011,9.637e-05,2]
[408578688,1773902277537,245.023011,9.637e-05,2]
[408578689,1773902277562,1022.71010044,9.637e-05,2]
[408578722,1773902287574,154.0,9.7e-05,3]
[408578727,1773902288822,-5000.0,9.921e-05,2]
[408578729,1773902289074,-250.0,9.926e-05,2]
[408578730,1773902289103,-150.0,9.932e-05,2]
[408578731,1773902289133,-300.0,9.932e-05,2]
[408578732,1773902289164,-300.0,9.932e-05,2]
[408578734,1773902289197,-300.07852867,9.933e-05,2]
[408578735,1773902289229,-167.36781104,9.933e-05,2]
[408578736,1773902289261,-500.0,9.933e-05,2]
[408578737,1773902289289,-164.13740161,9.933e-05,2]
[408578738,1773902289318,-167.41696439,9.933e-05,2]
[408578739,1773902289346,-501.33720601,9.933e-05,2]
[408578740,1773902289374,-500.2027226,9.933e-05,2]
[408578741,1773902289407,-500.31068947,9.933e-05,2]
[408578742,1773902289437,-500.0,9.933e-05,2]
[408578743,1773902289470,-500.0,9.933e-05,2]
[408578750,1773902291679,-500.0,9.933e-05,2]
[408578752,1773902291708,-500.0,9.933e-05,2]
[408578753,1773902291737,-164.94931012,9.933e-05,2]
[408578754,1773902291766,-250.0,9.934e-05,2]
[408578755,1773902291795,-2170.11137976,9.94e-05,2]
[408578756,1773902291906,486.62,0.00016,120]
[408578763,1773902294758,-500.0,9.933e-05,2]
[408578764,1773902294785,-2829.88862024,9.94e-05,2]
[408578774,1773902297763,-5000.0,9.94e-05,2]
[408578776,1773902297883,-1937.18771931,9.94e-05,2]
[408578777,1773902297915,-500.0,9.946e-05,2]
[408578778,1773902297943,-300.0,9.952e-05,2]
[408578779,1773902297972,-1200.0,9.952e-05,2]
[408578780,1773902298001,-300.0,9.952e-05,2]
[408578828,1773902316311,6665.30790525,9.854e-05,2]
[408578829,1773902316335,258.63753161,9.854e-05,2]
[408578871,1773902342119,500.0,0.00010958,10]
[408578872,1773902342333,500.0,0.00010958,11]
[408578873,1773902342560,306.69216472,0.00010958,12]
[408578876,1773902347086,154.0,9.7e-05,3]
[408578891,1773902394510,484.43148882,9.854e-05,2]
[408578892,1773902394534,1131.22871118,9.854e-05,2]
[408578893,1773902407894,154.0,9.7e-05,3]
[408578894,1773902411002,311.0,9.7e-05,3]
[408578919,1773902457240,5000.01,9.492e-05,2]
[408578920,1773902457262,332.99,9.492e-05,2]
[408578923,1773902466833,154.0,9.7e-05,3]
[408578924,1773902482682,437.96,0.00016,120]
[408578925,1773902526945,154.0,9.7e-05,3]
[408578926,1773902586243,154.0,9.7e-05,3]
[408578966,1773902674608,394.16,0.00016,120]
[408578987,1773902706563,296.0,9.7e-05,3]
[408578999,1773902745244,-1200.0,9.754e-05,2]
[408579000,1773902745279,-300.0,9.754e-05,2]
[408579001,1773902745325,-300.0,9.754e-05,2]
[408579003,1773902745355,-250.0,9.754e-05,2]
[408579004,1773902745384,-900.01,9.755e-05,2]
[408579005,1773902745517,-4099.99,9.755e-05,2]
[408579006,1773902745626,-4897.104,9.755e-05,2]
[408579008,1773902745691,-205.802,9.755e-05,2]
[408579009,1773902745719,-196.407,9.755e-05,2]
[408579010,1773902745747,-197.43371688,9.755e-05,2]
[408579011,1773902745774,-150.0,9.849e-05,2]
[408579012,1773902745803,-3500.72456624,9.85e-05,2]
[408579013,1773902745896,-1499.27543376,9.85e-05,2]
[408579014,1773902745923,-2001.45913248,9.85e-05,2]
[408579015,1773902746001,-2998.54086752,9.85e-05,2]
[408579016,1773902746099,-825.25261555,9.85e-05,2]
[408579024,1773902748110,-4174.74738445,9.85e-05,2]
[408579025,1773902748148,-1650.5152311,9.854e-05,2]
[408579040,1773902754826,-849.4847689,9.854e-05,2]